bitfinex/quotes_ETHUSD_20260213
["timestamp","ask_amount","ask_price","bid_price","bid_amount"]
[1770998494396,1.22813912,2035.6,2034.4,0.46308075]
[1770998495018,10.18756113,2036.1,2034.6,0.46308075]
[1770998495289,1.22777723,2036.2,2035.2,0.46308075]
[1770998495514,3.1507278,2036.3,2035.3,7.52415575]
[1770998495789,1.923,2036.3,2035.3,0.46308075]
[1770998495996,3.15071912,2036.3,2035.3,0.46308075]
[1770998496194,1.923,2036.3,2035.3,0.46308075]
[1770998496390,1.923,2036.3,2035.5,0.46308075]
[1770998496624,0.002,2036.3,2035.8,0.48299844]
[1770998497207,0.002,2036.3,2035.6,30.0]
[1770998497721,0.002,2036.5,2035.9,0.48299844]
[1770998498114,1.22960765,2036.5,2035.9,0.48299844]
[1770998498414,0.002,2036.5,2036.0,0.48299844]
[1770998498920,0.002,2036.5,2035.9,1.22795815]
[1770998499528,0.002,2036.5,2036.0,0.48299844]
[1770998499913,0.002,2036.5,2035.9,1.22795815]
[1770998500096,0.002,2036.5,2036.0,0.48299844]
[1770998500536,0.002,2036.5,2036.1,1.22783753]
[1770998501236,0.002,2036.5,2036.1,1.71083597]
[1770998501529,1.22718496,2037.2,2036.2,0.48299844]
[1770998501829,1.22909387,2037.4,2036.4,0.48299844]
[1770998502495,0.002,2037.4,2036.5,1.22759636]
[1770998502701,0.002,2037.4,2036.6,0.48299844]
[1770998503796,0.002,2037.4,2036.7,6.07053]
[1770998504023,0.002,2037.7,2037.0,0.48299844]
[1770998504304,0.002,2037.7,2037.1,0.48299844]
[1770998504503,0.002,2037.7,2037.3,1.22711431]
[1770998505813,0.002,2037.7,2037.2,5.84345727]
[1770998505814,0.002,2037.7,2036.8,31.22741555]
[1770998506013,0.002,2037.7,2037.0,30.48299844]
[1770998506221,0.002,2037.5,2037.0,0.48299844]
[1770998506698,0.002,2037.5,2037.1,1.22723479]
[1770998508011,0.002,2037.7,2037.2,0.48299844]
[1770998508211,2.11155053,2038.3,2037.1,1.22723479]
[1770998508413,2.11155053,2038.3,2037.0,1.22725172]
[1770998508729,1.22663264,2038.1,2037.0,1.22725172]
[1770998508918,1.22663264,2038.1,2036.9,2.16632473]
[1770998509121,2.72715039,2038.1,2036.7,2.16644329]
[1770998509312,2.25663264,2038.1,2036.8,6.47699844]
[1770998509507,2.25663264,2038.1,2036.8,0.48299844]
[1770998509722,2.25663264,2038.1,2036.7,2.16644329]
[1770998510026,2.25663264,2038.1,2036.8,0.939]
[1770998510337,2.25663264,2038.1,2036.8,1.42199844]
[1770998510961,2.25663264,2038.1,2036.9,1.71035373]
[1770998511240,2.25663264,2038.1,2037.0,0.48299844]
[1770998511765,1.22659876,2038.2,2037.0,0.48299844]
[1770998512121,2.11155579,2038.3,2037.0,0.48299844]
[1770998512311,2.11155579,2038.3,2037.2,0.48299844]
[1770998512512,2.11155579,2038.3,2037.3,1.42199844]
[1770998512928,4.90733234,2038.6,2037.5,0.48299844]
[1770998512929,0.002,2038.6,2037.5,0.48299844]
[1770998513447,0.002,2038.6,2037.7,0.48299844]
[1770998513618,0.002,2038.6,2037.8,0.94]
[1770998514119,0.002,2038.6,2038.0,0.48299844]
[1770998514323,0.002,2039.2,2038.4,0.48299844]
[1770998514531,0.002,2039.2,2038.6,11.252156]
[1770998514743,0.002,2039.4,2038.7,0.48299844]
[1770998515049,0.002,2039.4,2038.9,0.48299844]
[1770998515349,0.00894851,2039.9,2038.2,1.22657246]
[1770998515350,1.03,2039.7,2038.2,1.22657246]
[1770998515557,1.03,2039.7,2038.3,15.11025244]
[1770998515861,1.03,2039.7,2038.3,0.48299844]
[1770998516424,1.03,2039.7,2038.5,0.48299844]
[1770998516628,1.03,2039.7,2038.7,2.67013]
[1770998516858,1.03,2039.7,2038.8,0.94]
[1770998517066,1.03,2039.7,2038.9,1.22615135]
[1770998517067,2.25567704,2039.7,2038.9,1.22615135]
[1770998517238,1e-08,2039.9,2039.1,0.48299844]
[1770998517439,1e-08,2040.3,2039.5,0.48299844]
[1770998517661,1e-08,2040.3,2039.7,0.48299844]
[1770998518456,1e-08,2040.3,2039.8,0.94]
[1770998519058,1e-08,2040.3,2039.9,1.22555027]
[1770998520569,1e-08,2040.3,2039.9,0.941]
[1770998520962,1e-08,2040.3,2039.3,1.22591085]
[1770998521165,1e-08,2040.3,2039.5,0.941]
[1770998521364,1e-08,2040.3,2039.6,4.84380774]
[1770998521540,1e-08,2040.3,2039.7,2.392]
[1770998521738,1e-08,2040.3,2039.7,0.46881174]
[1770998522361,1e-08,2040.3,2039.3,1.22591085]
[1770998522362,1e-08,2040.3,2039.8,0.941]
[1770998522563,1e-08,2040.3,2039.4,0.46881174]
[1770998522764,1e-08,2040.3,2039.1,1.22603109]
[1770998522975,1e-08,2040.3,2039.3,1.22591085]
[1770998523179,1e-08,2040.3,2039.4,3.588]
[1770998523468,1e-08,2040.3,2039.5,6.88881]
[1770998523669,1e-08,2040.3,2039.6,0.884]
[1770998523887,1e-08,2040.3,2039.6,0.941]
[1770998524178,1e-08,2040.3,2039.7,0.46881174]
[1770998524381,0.13642,2040.9,2040.1,0.46881174]
[1770998524554,1.22434987,2041.9,2040.5,0.46881174]
[1770998524765,1.22434987,2041.9,2040.7,0.46881174]
[1770998525069,1.47755337,2042.1,2040.9,6.292045]
[1770998525300,1.47757179,2042.1,2040.9,3.88085674]
[1770998525444,4.89623336,2042.4,2041.3,0.46881174]
[1770998525445,1.22405013,2042.4,2041.3,0.46881174]
[1770998525752,1.22405013,2042.4,2040.8,0.46881174]
[1770998525957,1.71339533,2042.4,2040.9,0.943]
[1770998526166,0.4893452,2042.3,2040.9,0.943]
[1770998526476,1.026,2042.2,2040.9,0.943]
[1770998526677,0.4893452,2042.1,2040.9,0.943]
[1770998526849,1.026,2042.2,2040.9,0.943]
[1770998527049,1.22405013,2042.4,2041.0,1.22488975]
[1770998527266,2.24905013,2042.4,2041.0,1.22488975]
[1770998527846,0.4893452,2042.3,2040.7,0.942]
[1770998528074,0.4893452,2042.1,2040.7,0.942]
[1770998528273,0.4893452,2042.1,2040.7,0.941]
[1770998528587,0.1024,2042.2,2040.7,0.941]
[1770998528783,0.1024,2042.2,2040.8,0.941]
[1770998528784,0.5917452,2042.2,2040.8,0.941]
[1770998528986,1.22422995,2042.1,2040.9,1.22494977]
[1770998529482,0.4893452,2042.0,2040.6,1.22508255]
[1770998529685,1.22422995,2042.1,2040.3,5.37004647]
[1770998529686,0.4893452,2041.8,2040.3,0.883]
[1770998529882,0.4893452,2041.8,2040.3,3.04930849]
[1770998530184,10.86269041,2042.1,2040.3,1.824]
[1770998530185,1.3723452,2041.7,2040.3,1.824]
[1770998530390,0.1024,2041.2,2039.7,1.22562785]
[1770998530686,0.4893452,2041.0,2039.2,4.90382386]
[1770998530987,1.2251899,2040.5,2039.1,3.04998806]
[1770998531366,1.2251899,2040.5,2039.2,0.46881174]
[1770998531687,0.5917452,2040.4,2039.0,1.22605005]
[1770998531883,0.5917452,2040.4,2038.9,2.16711069]
[1770998531884,0.4893452,2040.4,2038.9,2.16711069]
[1770998532188,0.4893452,2040.4,2039.5,0.001]
[1770998532361,1.2251899,2040.5,2039.5,0.001]
[1770998532693,1.7145351,2040.5,2039.5,0.001]
[1770998532854,1.2250098,2040.8,2039.5,0.001]
[1770998533183,4.90075961,2040.9,2039.6,1.41081174]
[1770998533355,2.24892023,2041.0,2039.6,2.29381174]
[1770998533679,1.024,2041.0,2039.7,0.46881174]
[1770998533880,2.10787034,2041.1,2039.9,17.68844574]
[1770998533881,0.883,2041.1,2039.9,17.68844574]
[1770998534083,1.22464975,2041.4,2040.2,5.316934]
[1770998534332,1.22464975,2041.4,2040.2,0.943]
[1770998534454,1.71399495,2041.4,2039.8,4.78415]
[1770998534657,1.71399495,2041.4,2039.9,0.943]
[1770998535388,0.4893452,2041.0,2039.5,0.001]
[1770998535584,0.4893452,2040.8,2039.5,0.001]
[1770998535787,0.4893452,2040.8,2039.5,1.22678855]
[1770998535985,0.4893452,2040.8,2039.5,0.001]
[1770998536177,0.4893452,2040.8,2039.5,1.22677598]
[1770998536378,0.4893452,2040.8,2039.5,1.22676736]
[1770998536573,0.5917452,2040.7,2039.5,0.001]
[1770998536789,0.5917452,2040.7,2039.5,1.22679026]
[1770998536958,2.25012986,2040.6,2039.5,0.001]
[1770998538992,0.4893452,2040.4,2039.5,0.001]
[1770998539322,2.7396552,2040.3,2038.7,0.001]
[1770998539506,1.025,2040.3,2038.7,0.46981174]
[1770998539678,5.38986465,2040.7,2038.7,0.46981174]
[1770998539679,1.025,2040.7,2039.2,0.46881174]
[1770998539880,1.025,2040.7,2039.2,2.29181174]
[1770998540199,1.025,2040.7,2039.3,6.13622874]
[1770998540379,1.025,2040.7,2039.3,0.46881174]
[1770998540581,1.5143452,2040.7,2039.2,0.94]
[1770998540901,1.025,2040.7,2039.3,4.212303]
[1770998541093,1.22512986,2040.6,2039.4,4.05785074]
[1770998541291,1.22512986,2040.6,2039.4,1.22585074]
[1770998541825,2.25007132,2040.7,2039.6,3.474935]
[1770998542107,1.22507132,2040.7,2039.6,2.338785]
[1770998542305,2.10795235,2040.9,2039.8,3.048013]
[1770998542509,2.10795235,2040.9,2039.8,5.34082474]
[1770998542510,0.883,2040.9,2039.8,5.34082474]
[1770998542805,2.2507779,2041.2,2039.9,0.46881174]
[1770998542992,2.2507779,2041.2,2040.0,1.22549019]
[1770998543383,1.04900942,2041.1,2040.0,1.22549019]
[1770998543703,2.2507779,2041.2,2040.0,1.22549019]
[1770998544387,1.04920466,2041.1,2040.0,1.22549019]
[1770998544707,1.31117789,2040.9,2039.6,1.22573053]
[1770998544878,0.4893452,2040.8,2039.8,0.001]
[1770998545083,1.22512986,2040.6,2039.8,0.001]
[1770998545281,1.04994688,2040.5,2039.8,0.001]
[1770998545482,1.22512986,2040.6,2039.8,0.001]
[1770998546224,2.253113,2040.7,2039.8,0.001]
[1770998546528,1.05113787,2040.6,2039.8,0.001]
[1770998546720,1.05113787,2040.5,2039.8,0.001]
[1770998546926,1.05113787,2040.4,2039.8,0.001]
[1770998547118,4.90124001,2040.5,2039.8,0.001]
[1770998547317,1.05128421,2040.4,2039.8,0.001]
[1770998547500,1.05128421,2040.3,2039.8,0.001]
[1770998547710,4.90124001,2040.5,2039.8,0.001]
[1770998548030,1.05141018,2040.4,2039.8,0.001]
[1770998548232,1.05141018,2040.3,2039.8,0.001]
[1770998548414,1.027,2040.2,2039.8,0.001]
[1770998548602,1.31117789,2040.6,2039.8,0.001]
[1770998548805,1.22493783,2041.0,2039.9,1.40881174]
[1770998549349,1.22476974,2041.2,2040.0,1.22549019]
[1770998549633,1.050916,2041.1,2040.0,1.22549019]
[1770998549932,1.22476974,2041.2,2039.8,0.001]
[1770998550108,1.22476974,2041.2,2039.9,1.22554519]
[1770998550109,3.58687263,2041.2,2039.9,1.22554519]
[1770998550433,1.31117789,2040.9,2039.8,1.22660925]
[1770998550729,1.028,2040.8,2039.8,0.001]
[1770998550908,1.050925,2040.7,2039.8,0.001]
[1770998551105,1.22512986,2040.6,2039.8,0.001]
[1770998553334,2.25305481,2040.8,2039.8,0.001]
[1770998553509,1.05124204,2040.7,2039.8,0.4614282]
[1770998553710,2.25305481,2040.8,2039.8,0.4614282]
[1770998554441,2.25305481,2040.8,2039.8,0.001]
[1770998555209,0.883,2040.9,2040.0,0.4604282]
[1770998555409,2.10795512,2040.9,2040.0,0.4604282]
[1770998555610,2.10795512,2040.9,2039.9,2.16455027]
[1770998556927,1.05254432,2040.8,2039.9,1.22555027]
[1770998557234,1.05346919,2040.7,2039.8,0.001]
[1770998557437,1.05350119,2040.6,2039.8,0.001]
[1770998557634,0.002,2040.5,2039.8,0.001]
[1770998558717,1.05425194,2040.4,2039.8,0.001]
[1770998559017,0.002,2040.5,2039.8,0.001]
[1770998559018,1.05430983,2040.3,2039.8,0.001]
[1770998559339,1.05545545,2040.2,2039.8,0.001]
[1770998559511,2.5383912,2040.5,2039.8,0.001]
[1770998559844,1.05544221,2040.4,2039.8,0.001]
[1770998560028,1.2271962,2040.5,2039.8,0.001]
[1770998560233,1.05537861,2040.4,2039.8,0.001]
[1770998560428,1.05583745,2040.3,2039.8,0.001]
[1770998560629,2.53839214,2040.5,2039.8,0.001]
[1770998560834,1.05583803,2040.4,2039.8,0.001]
[1770998561035,1.05583803,2040.3,2039.8,0.001]
[1770998561227,1.22721425,2040.5,2039.8,0.001]
[1770998561428,2.28121075,2040.4,2039.8,0.001]
[1770998561630,1.05594167,2040.3,2039.8,0.001]
[1770998561837,1.31317789,2040.5,2039.8,0.001]
[1770998562046,1.05596204,2040.4,2039.8,0.001]
[1770998562254,1.22723853,2040.5,2039.8,0.001]
[1770998562255,1.05595385,2040.3,2039.8,0.001]
[1770998562429,1.05595385,2040.2,2039.8,0.001]
[1770998562629,1.31117789,2040.4,2039.8,0.001]
[1770998562817,1.05617266,2040.3,2039.8,0.001]
[1770998563145,1.05617266,2040.2,2039.8,0.001]
[1770998563328,1.22549019,2040.0,2039.8,0.001]
[1770998564394,1.05653112,2039.9,2038.8,5.40103843]
[1770998564516,1.05653112,2039.9,2039.0,0.49641601]
[1770998564848,1.05653112,2039.8,2039.0,0.49641601]
[1770998565147,1.027,2040.0,2039.2,9.61391501]
[1770998565345,1.05649148,2039.9,2039.3,1.22591085]
[1770998565548,1.0565706,2039.8,2038.9,4.90458586]
[1770998565745,2.36780783,2039.7,2038.7,0.001]
[1770998566049,1.31117789,2039.5,2038.7,1.22727019]
[1770998566247,1.05662994,2039.5,2038.7,1.22727019]
[1770998566446,1.05662994,2039.4,2038.7,1.22727019]
[1770998566650,1.029,2039.6,2038.7,1.22727019]
[1770998566825,1.05579245,2039.5,2038.7,1.22727019]
[1770998567030,2.34017789,2039.6,2038.7,1.22727019]
[1770998567031,1.05579245,2039.4,2038.7,1.22727019]
[1770998567230,1.029,2039.6,2038.7,1.22727019]
[1770998567432,1.05510823,2039.5,2038.7,1.22727019]
[1770998567635,2.28096091,2039.4,2038.7,0.001]
[1770998567832,1.22585268,2039.4,2038.7,0.001]
[1770998569563,1.05412195,2039.3,2038.0,1.37941601]
[1770998569762,9.35624456,2039.1,2038.0,0.883]
[1770998569979,1.05412195,2039.0,2038.0,0.883]
[1770998570271,1.31117789,2038.8,2037.4,27.690687]
[1770998570437,2.7953828,2038.9,2037.5,0.49641601]
[1770998570438,1.029,2038.7,2037.5,0.49641601]
[1770998570773,1.029,2038.7,2037.3,0.934]
[1770998570774,1.05239938,2038.6,2037.3,0.934]
[1770998570958,1.029,2038.7,2037.4,0.49641601]
[1770998571278,1.31117789,2039.0,2037.6,19.12935401]
[1770998571453,10.23924456,2039.2,2038.7,0.001]
[1770998571781,1.22613089,2039.0,2037.9,1.22675303]
[1770998571942,1.22613089,2039.0,2037.5,0.935]
[1770998571943,1.54297718,2038.9,2037.5,0.935]
[1770998572293,0.49202641,2038.7,2037.5,0.935]
[1770998572462,9.35624456,2038.4,2037.3,0.883]
[1770998572768,9.35624456,2038.4,2037.2,0.001]
[1770998572769,9.35624456,2038.0,2037.2,0.001]
[1770998572970,1.032,2038.3,2037.8,0.001]
[1770998573280,0.49202641,2037.9,2037.0,0.001]
[1770998573432,1.916,2037.8,2037.0,0.001]
[1770998573841,1.22687343,2037.7,2037.0,0.001]
[1770998574144,1.22687343,2037.7,2036.4,1.22765664]
[1770998574145,9.35624456,2037.6,2036.4,1.22765664]
[1770998574332,9.84827097,2037.6,2036.0,0.001]
[1770998574537,9.35624456,2037.2,2036.1,1.22882956]
[1770998574742,1.034,2037.1,2036.1,1.22882956]
[1770998574985,1.034,2037.1,2036.1,0.001]
[1770998575199,1.034,2037.1,2035.8,0.885]
[1770998575200,9.35624456,2036.5,2035.8,0.001]
[1770998575375,2.41002641,2036.4,2034.9,0.885]
[1770998575681,9.35624456,2035.7,2034.9,0.001]
[1770998575878,2.26513912,2035.6,2034.9,0.001]
[1770998576442,9.35624456,2036.1,2034.9,0.001]
[1770998576640,2.26489783,2036.0,2034.9,0.001]
[1770998577350,12.33328959,2036.0,2034.9,0.001]
[1770998577553,2.75692424,2036.0,2034.9,0.001]
[1770998579478,0.1024,2035.9,2034.9,0.001]
[1770998579646,0.59442641,2035.9,2034.9,0.001]
[1770998579848,1.72004487,2035.8,2034.9,0.001]
[1770998580143,0.49202641,2035.7,2034.9,0.001]
[1770998580341,1.041,2035.6,2034.9,0.001]
[1770998580685,1.042,2035.5,2034.9,0.001]
[1770998581448,1.51020356,2035.5,2034.3,0.001]
[1770998581654,10.04456891,2035.4,2034.3,0.001]
[1770998581842,1.22832014,2035.3,2034.3,0.001]
[1770998582050,1.22832014,2035.3,2034.3,0.49290951]
[1770998582259,1.22830572,2035.4,2034.5,0.49190951]
[1770998582559,1.22830572,2035.4,2034.3,0.001]
[1770998583596,1.69650928,2035.4,2034.3,0.001]
[1770998584002,5.95494711,2035.5,2034.3,0.001]
[1770998584003,1.043,2035.3,2034.3,0.001]
[1770998584496,0.1024,2034.9,2034.3,0.001]
[1770998584795,1.931,2034.8,2034.3,0.001]
[1770998584965,1.046,2034.7,2034.3,0.001]
[1770998585399,1.046,2034.7,2034.1,0.001]
[1770998585977,1.22874275,2034.6,2034.1,0.001]
[1770998586261,1.22874275,2034.6,2033.8,0.001]
[1770998587010,16.009971,2034.5,2033.8,0.001]
[1770998587232,1.22874275,2034.6,2033.8,0.001]
[1770998587516,1.931,2034.4,2033.8,0.001]
[1770998588102,1.22892395,2034.3,2033.8,0.001]
[1770998588309,1.047,2034.2,2033.8,0.001]
[1770998588982,1.22862197,2034.8,2033.8,0.001]
[1770998589328,1.047,2035.6,2034.2,0.49190951]
[1770998589481,1.047,2035.6,2034.4,0.49190951]
[1770998589881,1.047,2035.6,2034.6,0.49190951]
[1770998590120,1.047,2035.6,2034.5,18.93394]
[1770998590121,0.885,2035.9,2035.0,0.49190951]
[1770998590611,2.27675029,2036.3,2035.1,0.49190951]
[1770998591178,1.049,2036.3,2035.1,0.49190951]
[1770998592829,1.049,2036.3,2035.3,0.49190951]
[1770998593488,0.885,2036.7,2035.2,1.2283805]
[1770998593489,1.22756039,2036.6,2035.5,0.49190951]
[1770998594019,3.16249746,2036.7,2035.5,0.49190951]
[1770998594228,1.935,2036.7,2035.7,0.49190951]
[1770998594938,3.16248783,2036.7,2035.8,1.71992797]
[1770998595278,1.22717455,2037.2,2035.9,0.49190951]
[1770998595742,1.05,2037.3,2035.9,0.49190951]
[1770998595880,2.27711604,2037.3,2035.9,0.49190951]
[1770998596599,12.54515,2037.2,2035.8,1.22801846]
[1770998596918,1.22723479,2037.1,2035.6,4.91245322]
[1770998597630,1.22723479,2037.1,2035.6,5.40436273]
[1770998599102,1.22723479,2037.1,2035.8,0.49190951]
[1770998599634,0.002,2036.7,2036.0,0.49190951]
[1770998599810,2.27711813,2037.3,2036.2,0.49190951]
[1770998599991,1.05,2037.3,2036.4,0.49190951]
[1770998600193,2.27712447,2037.3,2036.4,0.49190951]
[1770998600409,2.27712447,2037.3,2036.1,1.42890951]
[1770998600624,2.27712447,2037.3,2036.1,0.49190951]
[1770998601128,2.27712447,2037.3,2035.9,1.822]
[1770998601129,2.472582,2037.2,2035.9,2.11295375]
[1770998601423,14.730496,2037.2,2035.9,0.885]
[1770998601628,11.586686,2037.2,2035.9,0.885]
[1770998601829,8.757964,2037.2,2035.9,0.885]
[1770998602028,3.58538,2037.2,2035.9,0.885]
[1770998602195,1.2270321,2037.5,2036.2,0.49190951]
[1770998602418,1.22897978,2037.6,2036.4,0.49190951]
[1770998603029,0.002,2037.6,2036.7,1.71938532]
[1770998603321,0.002,2037.6,2036.8,0.49190951]
[1770998604948,0.002,2037.6,2036.9,1.7192648]
[1770998605151,0.002,2037.6,2036.7,4.90989057]
[1770998605302,0.002,2037.6,2036.8,0.49190951]
[1770998605497,0.002,2037.6,2036.7,4.90989057]
[1770998605498,2.11176774,2037.9,2037.0,0.49190951]
[1770998605808,2.11176774,2037.9,2036.7,4.90989057]
[1770998606010,2.11176774,2037.9,2036.8,1.42790951]
[1770998606329,2.11176774,2037.9,2036.9,0.49190951]
[1770998607024,0.885,2037.9,2037.0,1.71920455]
[1770998607230,2.11175723,2037.9,2037.0,1.71920455]
[1770998607736,2.11175723,2037.9,2036.9,1.22730616]
[1770998608444,1.22675723,2037.9,2036.9,1.71921567]
[1770998608754,2.78261998,2038.9,2036.9,1.71921567]
[1770998608755,1.22627164,2038.7,2037.4,0.49190951]
[1770998609043,0.002,2038.8,2037.7,1.22687343]
[1770998609219,0.002,2038.8,2037.6,1.71880576]
[1770998609421,0.002,2038.8,2037.5,2.16196186]
[1770998609810,0.002,2038.8,2037.5,0.935]
[1770998610013,0.002,2038.8,2037.2,4.9085824]
[1770998610213,0.002,2038.8,2037.4,0.49190951]
[1770998610735,1.048,2038.7,2037.4,0.49190951]
[1770998611044,1.22633179,2038.6,2037.4,1.69834793]
[1770998611210,1.22633179,2038.6,2037.4,1.22700542]
[1770998611412,1.22633179,2038.6,2037.3,0.935]
[1770998611751,1.22633179,2038.6,2037.0,1.69860799]
[1770998611919,1.22833179,2038.6,2037.0,2.63360799]
[1770998614945,1.22833179,2038.6,2037.1,0.4915986]
[1770998615246,1.22833179,2038.6,2037.3,0.4915986]
[1770998617345,1.22833179,2038.6,2037.3,1.7186792]
[1770998617519,1.22833179,2038.6,2037.4,0.4915986]
[1770998618147,1.22833179,2038.6,2037.2,1.22712833]
[1770998618444,1.22833179,2038.6,2037.3,0.4915986]
[1770998619360,1.22833179,2038.6,2037.4,1.22705408]
[1770998619720,1.22833179,2038.6,2037.5,0.4915986]
[1770998620144,1.22833179,2038.6,2037.6,1.4215986]
[1770998620355,1.22833179,2038.6,2037.7,0.4915986]
[1770998620555,1.22833179,2038.6,2037.6,0.93]
[1770998621321,1.22833179,2038.6,2037.7,1.22687343]
[1770998622430,1.22833179,2038.6,2037.6,0.93]
[1770998622634,1.22833179,2038.6,2037.0,0.4915986]
[1770998622864,1.51954138,2038.5,2037.0,2.64784476]
[1770998623022,1.05030658,2038.4,2037.0,2.64784476]
[1770998623418,1.22651228,2038.3,2037.0,2.64789005]
[1770998623649,2.09230658,2038.2,2037.0,2.64789005]
[1770998623842,1.042,2038.2,2037.1,0.4915986]
[1770998624155,1.05133664,2038.1,2037.0,2.15629145]
[1770998624327,1.05133664,2038.0,2037.0,0.929]
[1770998624531,2.35317789,2038.2,2037.0,2.15629144]
[1770998624742,2.09483858,2038.1,2037.1,0.4915986]
[1770998624947,2.09483858,2038.1,2037.5,0.001]
[1770998624948,1.043,2038.1,2037.5,0.001]
[1770998625130,1.05180577,2038.0,2037.5,0.001]
[1770998625330,1.05230082,2037.9,2037.5,0.001]
[1770998625661,1.22669283,2038.0,2037.5,0.001]
[1770998626360,1.05231866,2037.9,2036.8,0.884]
[1770998626562,2.36928402,2037.8,2036.8,0.884]
[1770998626857,2.36928402,2037.8,2036.5,0.927]
[1770998626858,1.3162689,2037.6,2036.3,1.4185986]
[1770998627060,3.18352608,2037.9,2036.5,0.4915986]
[1770998627061,1.3162689,2037.9,2036.5,0.4915986]
[1770998627274,2.27069283,2038.0,2036.6,0.4915986]
[1770998627474,1.05354599,2037.9,2036.8,0.4915986]
[1770998627677,1.22667483,2038.1,2037.0,0.4915986]
[1770998628044,1.05344476,2038.0,2037.0,0.4915986]
[1770998628387,1.22667483,2038.1,2037.0,0.4915986]
[1770998628545,1.05438517,2038.0,2037.0,0.4915986]
[1770998628746,1.22661358,2038.2,2037.2,0.4915986]
[1770998628985,4.90589621,2038.4,2037.4,0.4915986]
[1770998629286,1.05429404,2038.3,2037.4,0.4915986]
[1770998629445,0.002,2038.6,2037.7,0.4915986]
[1770998629775,0.002,2038.6,2038.0,6.0478316]
[1770998629943,0.002,2038.8,2038.2,0.4915986]
[1770998630141,0.002,2038.8,2038.3,0.4915986]
[1770998630567,0.002,2039.0,2038.3,0.4915986]
[1770998631173,0.002,2039.0,2038.4,0.4915986]
[1770998631475,1.22767598,2039.7,2038.8,0.4915986]
[1770998631641,1.22767598,2039.7,2038.9,1.4185986]
[1770998632584,0.002,2039.7,2038.9,1.4185986]
[1770998632789,0.002,2039.7,2039.0,0.4915986]
[1770998633578,0.002,2039.7,2039.1,1.22603109]
[1770998633754,0.002,2039.7,2039.0,5.39572296]
[1770998633755,0.002,2039.7,2039.0,0.4915986]
[1770998635250,0.002,2039.7,2039.2,0.4915986]
[1770998635450,0.002,2039.7,2039.3,1.22591085]
[1770998635683,1.2271899,2040.5,2039.5,0.4915986]
[1770998635901,1.2271899,2040.5,2039.6,0.925]
[1770998636087,0.002,2040.5,2039.7,0.4915986]
[1770998636386,0.002,2040.5,2039.6,0.925]
[1770998636752,0.002,2040.5,2039.3,1.71750945]
[1770998636753,0.002,2040.5,2039.5,0.925]
[1770998637564,0.002,2040.5,2039.5,2.1507878]
[1770998638372,0.002,2040.5,2039.7,0.4915986]
[1770998638594,0.002,2040.3,2039.7,0.4915986]
[1770998638963,0.002,2040.3,2039.3,2.60149776]
[1770998639167,0.002,2040.3,2039.3,3.52649776]
[1770998639568,0.002,2040.3,2039.4,0.4915986]
[1770998639769,0.002,2040.3,2039.3,3.03489916]
[1770998640299,0.002,2040.3,2039.2,1.2259421]
[1770998640510,0.002,2040.3,2039.3,0.4915986]
[1770998640799,0.002,2040.3,2039.6,0.49129749]
[1770998641014,0.002,2040.7,2039.3,0.49129749]
[1770998641175,0.002,2040.7,2039.4,3.704967]
[1770998641376,0.002,2040.7,2039.5,0.49129749]
[1770998641697,0.002,2040.7,2040.0,0.49129749]
[1770998642000,0.002,2040.7,2040.0,0.924]
[1770998642201,0.002,2040.7,2040.0,1.41529749]
[1770998642394,0.002,2040.7,2040.0,0.924]
[1770998642905,0.002,2040.7,2039.6,2.60098341]
[1770998643088,0.002,2040.7,2039.7,0.924]
[1770998643294,0.002,2040.7,2039.4,0.924]
[1770998643490,0.002,2040.7,2039.5,1.22579063]
[1770998643880,0.002,2040.7,2039.5,1.71708812]
[1770998644183,0.002,2040.7,2039.9,0.49129749]
[1770998644386,0.002,2040.7,2040.0,0.924]
[1770998645683,0.002,2040.7,2040.0,2.14948248]
[1770998646100,0.002,2040.7,2040.0,2.14948969]
[1770998646306,0.002,2040.7,2040.0,0.924]
[1770998646808,0.002,2040.7,2040.0,2.14947782]
[1770998647169,0.002,2040.7,2040.0,0.924]
[1770998647370,0.002,2040.7,2039.3,4.9034428]
[1770998647371,0.002,2040.7,2039.3,1.22591085]
[1770998647574,1.22706982,2040.7,2039.5,1.22579063]
[1770998648101,0.48431465,2040.6,2039.4,0.924]
[1770998648302,1.037,2040.5,2039.4,0.924]
[1770998648618,1.037,2040.5,2039.4,2.14984662]
[1770998649182,1.037,2040.5,2039.4,0.924]
[1770998649487,1.037,2040.5,2039.4,2.14985054]
[1770998649686,1.22524995,2040.4,2039.4,0.924]
[1770998650315,0.48431465,2040.2,2039.1,0.001]
[1770998651620,0.48431465,2040.0,2039.1,0.001]
[1770998651914,2.26155027,2039.9,2039.1,0.001]
[1770998655592,0.48431465,2039.8,2039.1,0.001]
[1770998655800,1.22567044,2039.7,2039.1,0.001]
[1770998656202,1.22567044,2039.7,2038.9,0.001]
[1770998657418,1.04929383,2039.6,2038.9,0.001]
[1770998657719,1.22567044,2039.7,2038.9,0.001]
[1770998658022,1.22579063,2039.5,2038.9,0.001]
[1770998658213,1.036,2039.4,2038.9,0.001]
[1770998660311,1.22591085,2039.3,2038.9,0.001]
[1770998661092,1.22591085,2039.3,2038.4,0.49129749]
[1770998661310,1.22591085,2039.3,2038.4,1.22645194]
[1770998661719,1.22591085,2039.3,2038.3,1.22647769]
[1770998662211,1.22591085,2039.3,2038.0,1.71894478]
[1770998662419,1.05216732,2039.2,2038.1,0.49129749]
[1770998662597,1.22591085,2039.3,2038.1,0.49129749]
[1770998663132,1.22591085,2039.3,2038.5,0.001]
[1770998663826,1.05159917,2039.2,2038.5,0.001]
[1770998664024,1.22591085,2039.3,2038.5,0.001]
[1770998664724,1.04,2039.2,2038.5,0.001]
[1770998666119,1.05062008,2039.1,2038.5,0.001]
[1770998666307,1.22603109,2039.1,2038.5,0.001]
[1770998666702,1.05085322,2039.0,2038.3,0.001]
[1770998666911,1.71034574,2039.1,2038.3,0.001]